[Event "Titled Tuesday Blitz August 15 Early 2023"]
[White "Liu, Casper"]
[Black "Davidson, Kevin"]
[WhiteFideId "1454153"]
[BlackFideId "2056810"]
[WhiteElo "2460"]
[BlackElo "2355"]
[Result "0-1"]
[Round "9"]
[TimeControl "180+1"]
[Date "2023.08.15"]
[WhiteClock "0:01:34"]
[BlackClock "0:00:03"]
[Board "110"]

1. e4 {[%clk 0:02:56]}  c5 {[%clk 0:02:58]} 2. d4 {[%clk 0:02:57]}  cxd4 {[%clk 0:02:57]} 3. Qxd4 {[%clk 0:02:58]}  Nc6 {[%clk 0:02:56]} 4. Qe3 {[%clk 0:02:58]}  Nf6 {[%clk 0:02:56]} 5. Nc3 {[%clk 0:02:59]}  e6 {[%clk 0:02:49]} 6. Bd2 {[%clk 0:02:59]}  d5 {[%clk 0:02:48]} 7. exd5 {[%clk 0:03:00]}  Nxd5 {[%clk 0:02:48]} 8. Nxd5 {[%clk 0:03:01]}  Qxd5 {[%clk 0:02:48]} 9. Qb3 {[%clk 0:03:02]}  Qxb3 {[%clk 0:02:24]} 10. axb3 {[%clk 0:03:03]}  Nb4 {[%clk 0:02:12]} 11. O-O-O {[%clk 0:02:47]}  Bd7 {[%clk 0:02:04]} 12. Kb1 {[%clk 0:02:43]}  Rc8 {[%clk 0:02:00]} 13. Bc3 {[%clk 0:02:43]}  Nd5 {[%clk 0:01:54]} 14. Bd4 {[%clk 0:02:41]}  Bc5 {[%clk 0:01:51]} 15. Bxg7 {[%clk 0:02:38]}  Rg8 {[%clk 0:01:51]} 16. Bd4 {[%clk 0:02:39]}  Bxd4 {[%clk 0:01:38]} 17. Rxd4 {[%clk 0:02:40]}  Bc6 {[%clk 0:01:36]} 18. Nf3 {[%clk 0:02:40]}  f6 {[%clk 0:01:33]} 19. Rh4 {[%clk 0:02:22]}  Rg7 {[%clk 0:01:15]} 20. Nd4 {[%clk 0:02:23]}  Bd7 {[%clk 0:01:13]} 21. g3 {[%clk 0:02:20]}  e5 {[%clk 0:01:12]} 22. Ne2 {[%clk 0:02:18]}  Bc6 {[%clk 0:00:54]} 23. Bh3 {[%clk 0:02:12]}  Rd8 {[%clk 0:00:48]} 24. Rd1 {[%clk 0:02:12]}  a6 {[%clk 0:00:32]} 25. Bf5 {[%clk 0:02:10]}  Ne7 {[%clk 0:00:29]} 26. Rxd8+ {[%clk 0:02:09]}  Kxd8 {[%clk 0:00:29]} 27. Bd3 {[%clk 0:01:51]}  f5 {[%clk 0:00:24]} 28. Nc3 {[%clk 0:01:47]}  e4 {[%clk 0:00:21]} 29. Bc4 {[%clk 0:01:46]}  b5 {[%clk 0:00:17]} 30. Be6 {[%clk 0:01:45]}  Kc7 {[%clk 0:00:10]} 31. Ne2 {[%clk 0:01:40]}  Kd6 {[%clk 0:00:10]} 32. Nd4 {[%clk 0:01:40]}  Ke5 {[%clk 0:00:07]} 33. Nxc6+ {[%clk 0:01:37]}  Nxc6 {[%clk 0:00:07]} 34. Bc8 {[%clk 0:01:37]}  a5 {[%clk 0:00:04]} 35. Bd7 {[%clk 0:01:36]}  Rxd7 {[%clk 0:00:03]} 36. Rh6 {[%clk 0:01:35]}  Nd4 {[%clk 0:00:03]} 37. c3 {[%clk 0:01:35]}  Ne2 {[%clk 0:00:02]} 38. Rb6 {[%clk 0:01:36]}  Rd5 {[%clk 0:00:02]} 39. Ra6 {[%clk 0:01:37]}  Ng1 {[%clk 0:00:02]} 40. Rxa5 {[%clk 0:01:37]}  Nf3 {[%clk 0:00:02]} 41. h4 {[%clk 0:01:35]}  h5 {[%clk 0:00:02]} 42. Ra8 {[%clk 0:01:33]}  f4 {[%clk 0:00:02]} 43. Rh8 {[%clk 0:01:33]}  fxg3 {[%clk 0:00:01]} 44. fxg3 {[%clk 0:01:34]}  Kd6 {[%clk 0:00:01]} 45. Rd8+ {[%clk 0:01:32]}  Kc5 {[%clk 0:00:01]} 46. Rc8+ {[%clk 0:01:32]}  Kb6 {[%clk 0:00:01]} 47. c4 {[%clk 0:01:32]}  bxc4 {[%clk 0:00:01]} 48. bxc4 {[%clk 0:01:33]}  Re5 {[%clk 0:00:01]} 49. b4 {[%clk 0:01:32]}  e3 {[%clk 0:00:01]} 50. Rb8+ {[%clk 0:01:29]}  Kc7 {[%clk 0:00:02]} 51. Rh8 {[%clk 0:01:30]}  e2 {[%clk 0:00:02]} 52. Rh7+ {[%clk 0:01:30]}  Kd8 {[%clk 0:00:02]} 53. Rh6 {[%clk 0:01:31]}  e1=Q+ {[%clk 0:00:02]} 54. Kc2 {[%clk 0:01:32]}  Qe2+ {[%clk 0:00:02]} 55. Kb3 {[%clk 0:01:33]}  Qe3+ {[%clk 0:00:03]} 56. Ka4 {[%clk 0:01:34]}  Qa7+ {[%clk 0:00:03]} 57. Kb3 {[%clk 0:01:34]}  Re3+ {[%clk 0:00:03]} 58. Kc2 {[%clk 0:01:34]}  Qa2+ {[%clk 0:00:03]} 59. Kd1 {[%clk 0:01:34]}  Qd2# {[%clk 0:00:03]} 0-1


[Site "https://www.chess.com"]

[Event "Titled Tuesday Blitz August 15 Early 2023"]
[White "Spichkin, Alexander"]
[Black "Okike, David"]
[WhiteFideId "4144074"]
[BlackFideId "8500134"]
[WhiteElo "2460"]
[BlackElo "2351"]
[Result "1-0"]
[Round "9"]
[TimeControl "180+1"]
[Date "2023.08.15"]
[WhiteClock "0:00:21"]
[BlackClock "0:00:47"]
[Board "111"]

1. f4 {[%clk 0:02:10]}  d5 {[%clk 0:02:57]} 2. Nf3 {[%clk 0:02:10]}  c5 {[%clk 0:02:57]} 3. e3 {[%clk 0:02:10]}  a6 {[%clk 0:02:57]} 4. b3 {[%clk 0:02:10]}  Nc6 {[%clk 0:02:57]} 5. Bb2 {[%clk 0:02:10]}  d4 {[%clk 0:02:57]} 6. Bd3 {[%clk 0:02:10]}  Nf6 {[%clk 0:02:56]} 7. O-O {[%clk 0:02:10]}  Bg4 {[%clk 0:02:54]} 8. h3 {[%clk 0:02:10]}  Bxf3 {[%clk 0:02:54]} 9. Qxf3 {[%clk 0:02:10]}  e6 {[%clk 0:02:54]} 10. a4 {[%clk 0:02:10]}  Be7 {[%clk 0:02:53]} 11. Na3 {[%clk 0:02:07]}  Qd5 {[%clk 0:02:46]} 12. e4 {[%clk 0:02:04]}  Qd8 {[%clk 0:02:45]} 13. Nc4 {[%clk 0:02:03]}  O-O {[%clk 0:02:45]} 14. a5 {[%clk 0:02:01]}  Rc8 {[%clk 0:02:41]} 15. Nb6 {[%clk 0:02:01]}  Rc7 {[%clk 0:02:41]} 16. e5 {[%clk 0:01:50]}  Nd5 {[%clk 0:02:39]} 17. Be4 {[%clk 0:01:47]}  Nxb6 {[%clk 0:02:35]} 18. axb6 {[%clk 0:01:46]}  Rc8 {[%clk 0:02:35]} 19. c3 {[%clk 0:01:27]}  Qxb6 {[%clk 0:02:34]} 20. cxd4 {[%clk 0:01:21]}  cxd4 {[%clk 0:02:32]} 21. Rae1 {[%clk 0:01:03]}  g6 {[%clk 0:02:30]} 22. Kh2 {[%clk 0:00:51]}  Na5 {[%clk 0:02:29]} 23. g4 {[%clk 0:00:50]}  Qxb3 {[%clk 0:02:21]} 24. Bxd4 {[%clk 0:00:46]}  Qxf3 {[%clk 0:02:20]} 25. Rxf3 {[%clk 0:00:46]}  Nc4 {[%clk 0:02:17]} 26. Bc3 {[%clk 0:00:41]}  b5 {[%clk 0:02:05]} 27. Bb7 {[%clk 0:00:41]}  Rcd8 {[%clk 0:02:04]} 28. Bxa6 {[%clk 0:00:42]}  Nxd2 {[%clk 0:02:04]} 29. Bxd2 {[%clk 0:00:41]}  Rxd2+ {[%clk 0:02:04]} 30. Kg3 {[%clk 0:00:41]}  b4 {[%clk 0:02:04]} 31. f5 {[%clk 0:00:40]}  Ra8 {[%clk 0:01:54]} 32. Bc4 {[%clk 0:00:38]}  Rc8 {[%clk 0:01:40]} 33. Ba6 {[%clk 0:00:33]}  Rcc2 {[%clk 0:01:29]} 34. Re4 {[%clk 0:00:25]}  Rg2+ {[%clk 0:01:24]} 35. Kf4 {[%clk 0:00:25]}  g5+ {[%clk 0:01:21]} 36. Ke3 {[%clk 0:00:25]}  Bc5+ {[%clk 0:01:19]} 37. Rd4 {[%clk 0:00:23]}  Rge2+ {[%clk 0:01:17]} 38. Bxe2 {[%clk 0:00:22]}  Bxd4+ {[%clk 0:01:17]} 39. Kxd4 {[%clk 0:00:22]}  Rxe2 {[%clk 0:01:17]} 40. f6 {[%clk 0:00:21]}  Rb2 {[%clk 0:01:09]} 41. Kc5 {[%clk 0:00:20]}  h6 {[%clk 0:01:08]} 42. Kd6 {[%clk 0:00:20]}  Kh7 {[%clk 0:01:08]} 43. Ke7 {[%clk 0:00:21]}  Kg6 {[%clk 0:01:08]} 44. Rd3 {[%clk 0:00:21]}  Re2 {[%clk 0:01:08]} 45. Rd8 {[%clk 0:00:21]}  Rxe5 {[%clk 0:01:02]} 46. Rg8+ {[%clk 0:00:22]}  Kh7 {[%clk 0:01:02]} 47. Kxf7 {[%clk 0:00:22]}  Rb5 {[%clk 0:00:56]} 48. Rg7+ {[%clk 0:00:22]}  Kh8 {[%clk 0:00:56]} 49. Kg6 {[%clk 0:00:23]}  Rb8 {[%clk 0:00:54]} 50. f7 {[%clk 0:00:21]}  e5 {[%clk 0:00:47]} 51. Rh7# {[%clk 0:00:21]} 1-0


[Site "https://www.chess.com"]

[Event "Titled Tuesday Blitz August 15 Early 2023"]
[White "Womacka, Mathias"]
[Black "Kiselev, Pavel"]
[WhiteFideId "4611390"]
[BlackFideId "4191102"]
[WhiteElo "2454"]
[BlackElo "2332"]
[Result "1-0"]
[Round "9"]
[TimeControl "180+1"]
[Date "2023.08.15"]
[WhiteClock "0:00:21"]
[BlackClock "0:00:25"]
[Board "112"]

1. e4 {[%clk 0:03:00]}  c5 {[%clk 0:02:56]} 2. Nf3 {[%clk 0:02:57]}  Nc6 {[%clk 0:02:53]} 3. d4 {[%clk 0:02:57]}  cxd4 {[%clk 0:02:53]} 4. Nxd4 {[%clk 0:02:57]}  g6 {[%clk 0:02:54]} 5. c4 {[%clk 0:02:57]}  Bg7 {[%clk 0:02:54]} 6. Be3 {[%clk 0:02:57]}  d6 {[%clk 0:02:54]} 7. Nc3 {[%clk 0:02:57]}  Nf6 {[%clk 0:02:54]} 8. Be2 {[%clk 0:02:57]}  O-O {[%clk 0:02:54]} 9. O-O {[%clk 0:02:58]}  Bd7 {[%clk 0:02:54]} 10. Qd2 {[%clk 0:02:58]}  Re8 {[%clk 0:02:53]} 11. f3 {[%clk 0:02:55]}  a6 {[%clk 0:02:54]} 12. Rac1 {[%clk 0:02:52]}  Qa5 {[%clk 0:02:54]} 13. Rfd1 {[%clk 0:02:51]}  Nxd4 {[%clk 0:02:54]} 14. Bxd4 {[%clk 0:02:49]}  b5 {[%clk 0:02:55]} 15. cxb5 {[%clk 0:02:23]}  axb5 {[%clk 0:02:56]} 16. Bxf6 {[%clk 0:02:16]}  Bxf6 {[%clk 0:02:43]} 17. Nd5 {[%clk 0:02:16]}  Qxd2 {[%clk 0:02:29]} 18. Nxf6+ {[%clk 0:02:15]}  exf6 {[%clk 0:02:30]} 19. Rxd2 {[%clk 0:02:15]}  Rxa2 {[%clk 0:02:30]} 20. Rxd6 {[%clk 0:02:14]}  Be6 {[%clk 0:02:30]} 21. Rc2 {[%clk 0:02:05]}  b4 {[%clk 0:02:28]} 22. Kf2 {[%clk 0:01:58]}  b3 {[%clk 0:02:23]} 23. Rcd2 {[%clk 0:01:58]}  Rc8 {[%clk 0:02:23]} 24. Rd8+ {[%clk 0:01:49]}  Rxd8 {[%clk 0:02:23]} 25. Rxd8+ {[%clk 0:01:49]}  Kg7 {[%clk 0:02:23]} 26. Rd2 {[%clk 0:01:49]}  f5 {[%clk 0:02:23]} 27. Ke3 {[%clk 0:01:47]}  fxe4 {[%clk 0:02:23]} 28. fxe4 {[%clk 0:01:47]}  Ra4 {[%clk 0:02:21]} 29. Bd1 {[%clk 0:01:41]}  Ra1 {[%clk 0:02:19]} 30. Kd3 {[%clk 0:01:36]}  Ra4 {[%clk 0:02:15]} 31. Bf3 {[%clk 0:01:31]}  Ra6 {[%clk 0:02:09]} 32. Kc3 {[%clk 0:01:30]}  Rc6+ {[%clk 0:02:09]} 33. Kb4 {[%clk 0:01:30]}  Rc2 {[%clk 0:02:06]} 34. Re2 {[%clk 0:01:27]}  Bc4 {[%clk 0:02:03]} 35. Re3 {[%clk 0:01:23]}  Be6 {[%clk 0:01:55]} 36. Re2 {[%clk 0:01:18]}  Rc4+ {[%clk 0:01:53]} 37. Kxb3 {[%clk 0:01:10]}  Rxe4+ {[%clk 0:01:53]} 38. Kc3 {[%clk 0:01:10]}  Rc4+ {[%clk 0:01:52]} 39. Kd3 {[%clk 0:01:09]}  Rc1 {[%clk 0:01:50]} 40. Rd2 {[%clk 0:01:06]}  Bc4+ {[%clk 0:01:46]} 41. Kd4 {[%clk 0:01:05]}  Bb3 {[%clk 0:01:46]} 42. Bd5 {[%clk 0:01:01]}  Ba4 {[%clk 0:01:40]} 43. b4 {[%clk 0:00:56]}  f5 {[%clk 0:01:38]} 44. Bc4 {[%clk 0:00:51]}  Bc6 {[%clk 0:01:35]} 45. b5 {[%clk 0:00:48]}  Be4 {[%clk 0:01:34]} 46. Bd5 {[%clk 0:00:46]}  Rb1 {[%clk 0:01:22]} 47. Kc5 {[%clk 0:00:44]}  Rc1+ {[%clk 0:01:18]} 48. Kd6 {[%clk 0:00:43]}  Rb1 {[%clk 0:01:15]} 49. Bc6 {[%clk 0:00:40]}  Kf6 {[%clk 0:01:10]} 50. Kc7 {[%clk 0:00:40]}  Ke5 {[%clk 0:01:09]} 51. g3 {[%clk 0:00:34]}  Rb4 {[%clk 0:01:06]} 52. b6 {[%clk 0:00:31]}  Rc4 {[%clk 0:01:07]} 53. Rd6 {[%clk 0:00:30]}  g5 {[%clk 0:00:40]} 54. b7 {[%clk 0:00:28]}  Rb4 {[%clk 0:00:40]} 55. Bxe4 {[%clk 0:00:22]}  fxe4 {[%clk 0:00:37]} 56. Rb6 {[%clk 0:00:22]}  Rc4+ {[%clk 0:00:35]} 57. Kd7 {[%clk 0:00:22]}  Rd4+ {[%clk 0:00:34]} 58. Ke7 {[%clk 0:00:22]}  Rd8 {[%clk 0:00:25]} 59. Kxd8 {[%clk 0:00:21]} 1-0


[Site "https://www.chess.com"]

[Event "Titled Tuesday Blitz August 15 Early 2023"]
[White "Dong Khanh Linh"]
[Black "Afanasieva, Alexandra"]
[WhiteFideId "12403040"]
[BlackFideId "34126926"]
[WhiteElo "2452"]
[BlackElo "2331"]
[Result "1-0"]
[Round "9"]
[TimeControl "180+1"]
[Date "2023.08.15"]
[WhiteClock "0:00:19"]
[BlackClock "0:00:01"]
[Board "113"]

1. d4 {[%clk 0:03:00]}  d5 {[%clk 0:02:59]} 2. Nf3 {[%clk 0:02:53]}  Nf6 {[%clk 0:03:00]} 3. e3 {[%clk 0:02:53]}  Bf5 {[%clk 0:02:56]} 4. c4 {[%clk 0:02:52]}  e6 {[%clk 0:02:56]} 5. Qb3 {[%clk 0:02:52]}  b6 {[%clk 0:02:51]} 6. cxd5 {[%clk 0:02:46]}  exd5 {[%clk 0:02:51]} 7. Ne5 {[%clk 0:02:46]}  c6 {[%clk 0:02:45]} 8. Bd2 {[%clk 0:02:32]}  Bd6 {[%clk 0:02:42]} 9. Bb4 {[%clk 0:02:32]}  O-O {[%clk 0:02:42]} 10. Bxd6 {[%clk 0:02:30]}  Qxd6 {[%clk 0:02:42]} 11. Nc3 {[%clk 0:02:30]}  Nbd7 {[%clk 0:02:41]} 12. Nxd7 {[%clk 0:02:29]}  Nxd7 {[%clk 0:02:42]} 13. Be2 {[%clk 0:02:27]}  Nf6 {[%clk 0:02:23]} 14. O-O {[%clk 0:02:26]}  Rfe8 {[%clk 0:02:14]} 15. Rac1 {[%clk 0:02:14]}  Rad8 {[%clk 0:02:01]} 16. h3 {[%clk 0:01:51]}  h5 {[%clk 0:01:46]} 17. Bf3 {[%clk 0:01:42]}  g5 {[%clk 0:01:39]} 18. Be2 {[%clk 0:01:06]}  Qe6 {[%clk 0:01:26]} 19. Qd1 {[%clk 0:00:51]}  Bxh3 {[%clk 0:00:38]} 20. gxh3 {[%clk 0:00:49]}  Qxh3 {[%clk 0:00:38]} 21. Bf3 {[%clk 0:00:49]}  Ng4 {[%clk 0:00:34]} 22. Bxg4 {[%clk 0:00:45]}  hxg4 {[%clk 0:00:35]} 23. Ne2 {[%clk 0:00:38]}  Kg7 {[%clk 0:00:26]} 24. Ng3 {[%clk 0:00:38]}  Rh8 {[%clk 0:00:09]} 25. Re1 {[%clk 0:00:37]}  Rh4 {[%clk 0:00:03]} 26. Nf5+ {[%clk 0:00:24]}  Kg6 {[%clk 0:00:04]} 27. Nxh4+ {[%clk 0:00:22]}  Qxh4 {[%clk 0:00:03]} 28. Qd3+ {[%clk 0:00:19]}  f5 {[%clk 0:00:02]} 29. Rxc6+ {[%clk 0:00:19]}  Kg7 {[%clk 0:00:01]} 30. Qxf5 {[%clk 0:00:19]} 1-0


[Site "https://www.chess.com"]

[Event "Titled Tuesday Blitz August 15 Early 2023"]
[White "Huynh, Lam Binh Nguyen"]
[Black "Sanhueza, Cristian"]
[WhiteFideId "12401633"]
[BlackFideId "116815"]
[WhiteElo "2312"]
[BlackElo "2425"]
[Result "0-1"]
[Round "9"]
[TimeControl "180+1"]
[Date "2023.08.15"]
[WhiteClock "0:00:00"]
[BlackClock "0:00:05"]
[Board "115"]

1. d4 {[%clk 0:02:59]}  Nf6 {[%clk 0:03:00]} 2. Bf4 {[%clk 0:02:58]}  c5 {[%clk 0:02:59]} 3. e3 {[%clk 0:02:56]}  Qb6 {[%clk 0:03:00]} 4. b3 {[%clk 0:02:55]}  d5 {[%clk 0:02:58]} 5. Nf3 {[%clk 0:02:35]}  Nc6 {[%clk 0:02:58]} 6. dxc5 {[%clk 0:02:30]}  Qxc5 {[%clk 0:02:59]} 7. Nbd2 {[%clk 0:02:30]}  Bf5 {[%clk 0:02:45]} 8. Bd3 {[%clk 0:02:28]}  Bxd3 {[%clk 0:02:41]} 9. cxd3 {[%clk 0:02:28]}  Nb4 {[%clk 0:02:34]} 10. O-O {[%clk 0:02:20]}  Nxd3 {[%clk 0:02:31]} 11. Ne5 {[%clk 0:01:56]}  Nxf4 {[%clk 0:02:14]} 12. exf4 {[%clk 0:01:56]}  e6 {[%clk 0:02:07]} 13. b4 {[%clk 0:01:56]}  Qxb4 {[%clk 0:01:49]} 14. Rb1 {[%clk 0:01:56]}  Qxf4 {[%clk 0:01:48]} 15. Ndc4 {[%clk 0:01:40]}  Be7 {[%clk 0:01:11]} 16. Qa4+ {[%clk 0:01:30]}  Kf8 {[%clk 0:01:12]} 17. g3 {[%clk 0:01:16]}  Qf5 {[%clk 0:00:40]} 18. Rxb7 {[%clk 0:00:51]}  dxc4 {[%clk 0:00:38]} 19. Nc6 {[%clk 0:00:37]}  Nd5 {[%clk 0:00:17]} 20. Nxe7 {[%clk 0:00:21]}  Nxe7 {[%clk 0:00:15]} 21. Qb4 {[%clk 0:00:13]}  Re8 {[%clk 0:00:13]} 22. Rd1 {[%clk 0:00:13]}  g5 {[%clk 0:00:06]} 23. Rdd7 {[%clk 0:00:08]}  Qf6 {[%clk 0:00:06]} 24. Rxa7 {[%clk 0:00:04]}  h5 {[%clk 0:00:05]} 25. Qd2 {[%clk 0:00:02]}  h4 {[%clk 0:00:05]} 26. g4 {[%clk 0:00:00]}  h3 {[%clk 0:00:05]} 0-1


[Site "https://www.chess.com"]

[Event "Titled Tuesday Blitz August 15 Early 2023"]
[White "Bilan, Danila"]
[Black "Wang, Alexander J"]
[WhiteFideId "24161918"]
[BlackFideId "30955270"]
[WhiteElo "2565"]
[BlackElo "2299"]
[Result "1-0"]
[Round "9"]
[TimeControl "180+1"]
[Date "2023.08.15"]
[WhiteClock "0:00:09"]
[BlackClock "0:00:01"]
[Board "119"]

1. d4 {[%clk 0:02:58]}  Nf6 {[%clk 0:02:59]} 2. Nf3 {[%clk 0:02:58]}  d6 {[%clk 0:02:59]} 3. g3 {[%clk 0:02:54]}  g6 {[%clk 0:02:59]} 4. Bg2 {[%clk 0:02:53]}  Bg7 {[%clk 0:02:58]} 5. O-O {[%clk 0:02:53]}  O-O {[%clk 0:02:56]} 6. c4 {[%clk 0:02:53]}  c5 {[%clk 0:02:55]} 7. Nc3 {[%clk 0:02:52]}  a6 {[%clk 0:02:50]} 8. b3 {[%clk 0:02:51]}  Bg4 {[%clk 0:02:44]} 9. Bb2 {[%clk 0:02:43]}  Bxf3 {[%clk 0:02:43]} 10. Bxf3 {[%clk 0:02:42]}  Qc7 {[%clk 0:02:40]} 11. Rc1 {[%clk 0:02:34]}  Nc6 {[%clk 0:02:37]} 12. dxc5 {[%clk 0:02:26]}  dxc5 {[%clk 0:02:37]} 13. Nd5 {[%clk 0:02:22]}  Nxd5 {[%clk 0:02:31]} 14. Bxg7 {[%clk 0:02:18]}  Kxg7 {[%clk 0:02:28]} 15. cxd5 {[%clk 0:02:12]}  Ne5 {[%clk 0:02:26]} 16. Bg2 {[%clk 0:02:09]}  Rac8 {[%clk 0:02:23]} 17. e4 {[%clk 0:02:02]}  Nd7 {[%clk 0:02:18]} 18. f4 {[%clk 0:01:59]}  Qb6 {[%clk 0:02:10]} 19. Kh1 {[%clk 0:01:51]}  Rfd8 {[%clk 0:02:07]} 20. Qd2 {[%clk 0:01:44]}  Kg8 {[%clk 0:01:49]} 21. e5 {[%clk 0:01:38]}  e6 {[%clk 0:01:41]} 22. d6 {[%clk 0:01:26]}  Nb8 {[%clk 0:01:35]} 23. Rc2 {[%clk 0:01:14]}  Nc6 {[%clk 0:01:23]} 24. Rfc1 {[%clk 0:01:13]}  Nd4 {[%clk 0:01:17]} 25. Rc4 {[%clk 0:01:13]}  Qa7 {[%clk 0:01:04]} 26. h4 {[%clk 0:00:39]}  b5 {[%clk 0:00:55]} 27. R4c3 {[%clk 0:00:36]}  Nf5 {[%clk 0:00:46]} 28. Kh2 {[%clk 0:00:33]}  h5 {[%clk 0:00:36]} 29. Qf2 {[%clk 0:00:32]}  Kg7 {[%clk 0:00:22]} 30. Rxc5 {[%clk 0:00:29]}  Qb6 {[%clk 0:00:19]} 31. Qc2 {[%clk 0:00:20]}  Ne3 {[%clk 0:00:15]} 32. Qc3 {[%clk 0:00:17]}  Rxc5 {[%clk 0:00:13]} 33. Qxc5 {[%clk 0:00:18]}  Qxc5 {[%clk 0:00:10]} 34. Rxc5 {[%clk 0:00:19]}  Nxg2 {[%clk 0:00:10]} 35. Kxg2 {[%clk 0:00:20]}  Rb8 {[%clk 0:00:07]} 36. Kf3 {[%clk 0:00:18]}  Kf8 {[%clk 0:00:07]} 37. b4 {[%clk 0:00:17]}  Ke8 {[%clk 0:00:06]} 38. Rc7 {[%clk 0:00:17]}  Ra8 {[%clk 0:00:04]} 39. Rb7 {[%clk 0:00:15]}  a5 {[%clk 0:00:04]} 40. a3 {[%clk 0:00:15]}  axb4 {[%clk 0:00:04]} 41. axb4 {[%clk 0:00:16]}  Ra3+ {[%clk 0:00:05]} 42. Kg2 {[%clk 0:00:16]}  Ra2+ {[%clk 0:00:05]} 43. Kh3 {[%clk 0:00:16]}  Rb2 {[%clk 0:00:05]} 44. Rxb5 {[%clk 0:00:16]}  Kd7 {[%clk 0:00:05]} 45. Rb7+ {[%clk 0:00:16]}  Kc6 {[%clk 0:00:06]} 46. Rc7+ {[%clk 0:00:09]}  Kb6 {[%clk 0:00:05]} 47. Rxf7 {[%clk 0:00:09]}  Rxb4 {[%clk 0:00:04]} 48. Rf6 {[%clk 0:00:09]}  Kc6 {[%clk 0:00:03]} 49. Rxe6 {[%clk 0:00:09]}  Rb1 {[%clk 0:00:01]} 50. Rxg6 {[%clk 0:00:09]} 1-0


[Site "https://www.chess.com"]

[Event "Titled Tuesday Blitz August 15 Early 2023"]
[White "Bogaudinov, Rushan"]
[Black "Arutla, Aditya"]
[WhiteFideId "4129288"]
[BlackFideId "30961998"]
[WhiteElo "2331"]
[BlackElo "2499"]
[Result "1-0"]
[Round "9"]
[TimeControl "180+1"]
[Date "2023.08.15"]
[WhiteClock "0:00:14"]
[BlackClock "0:00:00"]
[Board "122"]

1. a3 {[%clk 0:02:38]}  e5 {[%clk 0:02:58]} 2. e3 {[%clk 0:02:36]}  Nf6 {[%clk 0:02:57]} 3. b4 {[%clk 0:02:36]}  d5 {[%clk 0:02:57]} 4. Bb2 {[%clk 0:02:36]}  Nbd7 {[%clk 0:02:56]} 5. Nf3 {[%clk 0:02:35]}  Bd6 {[%clk 0:02:55]} 6. c4 {[%clk 0:02:35]}  c6 {[%clk 0:02:55]} 7. Nc3 {[%clk 0:02:33]}  O-O {[%clk 0:02:49]} 8. d3 {[%clk 0:02:31]}  a5 {[%clk 0:02:47]} 9. Qb3 {[%clk 0:02:27]}  axb4 {[%clk 0:02:33]} 10. axb4 {[%clk 0:02:28]}  Rxa1+ {[%clk 0:02:30]} 11. Bxa1 {[%clk 0:02:29]}  Qb6 {[%clk 0:02:23]} 12. b5 {[%clk 0:02:18]}  Nc5 {[%clk 0:02:19]} 13. Qb2 {[%clk 0:02:13]}  dxc4 {[%clk 0:01:59]} 14. dxc4 {[%clk 0:02:12]}  Bf5 {[%clk 0:01:50]} 15. bxc6 {[%clk 0:02:04]}  Qxc6 {[%clk 0:01:47]} 16. Nb5 {[%clk 0:01:52]}  Re8 {[%clk 0:00:40]} 17. Nxd6 {[%clk 0:01:44]}  Qxd6 {[%clk 0:00:41]} 18. Be2 {[%clk 0:01:35]}  Nd3+ {[%clk 0:00:39]} 19. Bxd3 {[%clk 0:01:34]}  Qxd3 {[%clk 0:00:26]} 20. Nxe5 {[%clk 0:01:31]}  Rxe5 {[%clk 0:00:19]} 21. Qxe5 {[%clk 0:01:17]}  Qb1+ {[%clk 0:00:19]} 22. Ke2 {[%clk 0:01:13]}  Qc2+ {[%clk 0:00:18]} 23. Kf3 {[%clk 0:00:57]}  Be4+ {[%clk 0:00:14]} 24. Kg3 {[%clk 0:00:53]}  h5 {[%clk 0:00:15]} 25. Qb8+ {[%clk 0:00:44]}  Kh7 {[%clk 0:00:15]} 26. Bxf6 {[%clk 0:00:44]}  Qe2 {[%clk 0:00:09]} 27. Qf4 {[%clk 0:00:41]}  Bg6 {[%clk 0:00:06]} 28. Bd4 {[%clk 0:00:36]}  Qxc4 {[%clk 0:00:05]} 29. h3 {[%clk 0:00:32]}  b5 {[%clk 0:00:05]} 30. Qe5 {[%clk 0:00:29]}  f6 {[%clk 0:00:05]} 31. Qc5 {[%clk 0:00:28]}  Qe2 {[%clk 0:00:03]} 32. Qc3 {[%clk 0:00:19]}  h4+ {[%clk 0:00:03]} 33. Kh2 {[%clk 0:00:16]}  Qxf2 {[%clk 0:00:00]} 34. Qe1 {[%clk 0:00:14]} 1-0


[Site "https://www.chess.com"]

[Event "Titled Tuesday Blitz August 15 Early 2023"]
[White "Ljukin, Sergei"]
[Black "Muhammad Shahzeb"]
[WhiteFideId "14102200"]
[BlackFideId "7804806"]
[WhiteElo "2444"]
[BlackElo "2304"]
[Result "1-0"]
[Round "9"]
[TimeControl "180+1"]
[Date "2023.08.15"]
[WhiteClock "0:00:16"]
[BlackClock "0:00:00"]
[Board "126"]

1. e4 {[%clk 0:02:48]}  d5 {[%clk 0:02:42]} 2. exd5 {[%clk 0:02:46]}  Nf6 {[%clk 0:02:23]} 3. d4 {[%clk 0:02:44]}  Nxd5 {[%clk 0:02:22]} 4. c4 {[%clk 0:02:44]}  Nb6 {[%clk 0:02:21]} 5. Nf3 {[%clk 0:02:44]}  g6 {[%clk 0:02:21]} 6. Nc3 {[%clk 0:02:44]}  Bg7 {[%clk 0:02:20]} 7. c5 {[%clk 0:02:44]}  Nd5 {[%clk 0:02:19]} 8. Bc4 {[%clk 0:02:45]}  c6 {[%clk 0:02:19]} 9. O-O {[%clk 0:02:45]}  O-O {[%clk 0:02:20]} 10. Re1 {[%clk 0:02:45]}  Be6 {[%clk 0:02:17]} 11. Qe2 {[%clk 0:01:59]}  Nxc3 {[%clk 0:02:15]} 12. bxc3 {[%clk 0:01:59]}  Bxc4 {[%clk 0:02:14]} 13. Qxc4 {[%clk 0:01:59]}  b5 {[%clk 0:02:07]} 14. cxb6 {[%clk 0:01:48]}  axb6 {[%clk 0:02:07]} 15. a4 {[%clk 0:01:46]}  b5 {[%clk 0:02:06]} 16. Qb3 {[%clk 0:01:43]}  Nd7 {[%clk 0:01:56]} 17. Bf4 {[%clk 0:01:39]}  bxa4 {[%clk 0:01:37]} 18. Rxa4 {[%clk 0:01:38]}  e6 {[%clk 0:01:18]} 19. Rc4 {[%clk 0:01:22]}  Qc8 {[%clk 0:01:00]} 20. h3 {[%clk 0:01:11]}  h6 {[%clk 0:00:58]} 21. Rb1 {[%clk 0:01:08]}  Ra5 {[%clk 0:00:56]} 22. Qb7 {[%clk 0:01:02]}  Qxb7 {[%clk 0:00:40]} 23. Rxb7 {[%clk 0:01:01]}  Nf6 {[%clk 0:00:39]} 24. Rxc6 {[%clk 0:00:56]}  Nd5 {[%clk 0:00:33]} 25. Bd6 {[%clk 0:00:41]}  Rd8 {[%clk 0:00:30]} 26. c4 {[%clk 0:00:41]}  Nc3 {[%clk 0:00:26]} 27. c5 {[%clk 0:00:26]}  Ne2+ {[%clk 0:00:16]} 28. Kh2 {[%clk 0:00:22]}  Nxd4 {[%clk 0:00:14]} 29. Rcc7 {[%clk 0:00:16]}  Nxf3+ {[%clk 0:00:00]} 30. gxf3 {[%clk 0:00:16]} 1-0


[Site "https://www.chess.com"]